bitfinex/quotes_ETHUSD_20220120
["timestamp","ask_amount","ask_price","bid_price","bid_amount"]
[1642689511478,4.1,3205.5,3205.0,0.001]
[1642689511673,0.8256,3205.4,3205.0,0.001]
[1642689511874,0.15581,3205.3,3205.1,0.00170527]
[1642689512175,0.20081,3205.3,3205.1,0.00170527]
[1642689512974,0.20081,3205.3,3205.0,0.001]
[1642689512975,5.6,3205.1,3205.0,0.001]
[1642689513174,6.775,3205.1,3205.0,0.001]
[1642689513376,6.9078,3205.1,3205.0,0.001]
[1642689513573,6.9078,3205.1,3204.1,2.65553589]
[1642689513574,5.6,3205.0,3204.1,2.65553589]
[1642689513773,5.6,3205.0,3203.5,7.7762501]
[1642689513774,0.78081,3204.8,3204.2,2.65553589]
[1642689514022,0.045,3204.7,3204.3,1.34919037]
[1642689514221,0.15581,3204.6,3204.3,1.34919037]
[1642689514420,1.5616443,3204.8,3204.3,1.34919037]
[1642689514421,0.045,3204.5,3204.4,0.00397896]
[1642689515225,0.045,3204.5,3204.4,1.26529101]
[1642689515526,0.00113684,3205.6,3204.4,1.26529101]
[1642689515527,0.00113684,3205.6,3204.5,0.135]
[1642689515724,0.00113684,3205.6,3204.6,2.66199953]
[1642689515928,0.13819997,3205.8,3204.6,2.66199953]
[1642689515929,0.0022737,3205.5,3204.7,2.6553205]
[1642689516124,0.0022737,3205.5,3204.7,0.00227369]
[1642689516325,0.13819997,3205.8,3205.4,2.78977522]
[1642689516526,0.13819997,3205.8,3205.4,1.22421292]
[1642689516725,0.00341054,3205.7,3204.7,1.2211]
[1642689516927,0.15581,3205.6,3204.7,1.2211]
[1642689517126,0.15581,3205.6,3204.8,3.34778931]
[1642689517127,0.00284212,3205.6,3204.8,3.34778931]
[1642689517328,0.0022737,3205.5,3205.0,0.0120368]
[1642689517529,0.0022737,3205.5,3205.1,2.67093053]
[1642689517768,0.00170527,3205.4,3205.2,2.6549267]
[1642689517968,0.00170527,3205.4,3205.3,1.24361165]
[1642689518168,1.56073,3206.2,3205.3,1.24361165]
[1642689518369,1.56073,3206.2,3205.0,1.24533786]
[1642689518370,1.11520783,3205.9,3205.0,1.24533786]
[1642689518572,1.11520783,3205.9,3204.9,4.74933684]
[1642689518573,0.045,3205.8,3204.9,4.74933684]
[1642689518771,0.9362606,3205.7,3204.9,4.74933684]
[1642689518968,0.78065,3205.5,3204.9,4.74933684]
[1642689519172,0.07587962,3205.4,3204.9,4.74933684]
[1642689519373,0.16750527,3205.4,3204.9,0.00113684]
[1642689519575,1.19092279,3205.1,3204.9,0.00113684]
[1642689519775,0.9815008,3205.0,3204.7,0.00227369]
[1642689519977,0.045,3204.9,3204.7,0.00227369]
[1642689520177,0.045,3204.9,3204.6,0.00284211]
[1642689520382,0.00113685,3205.3,3204.6,0.00284211]
[1642689520774,0.00113685,3205.3,3204.7,1.3146707]
[1642689520974,0.00113685,3205.3,3204.9,0.01205808]
[1642689521178,0.00113685,3205.3,3205.0,2.73058762]
[1642689521413,0.00113685,3205.3,3205.1,3.27502172]
[1642689521618,0.00113685,3205.3,3204.9,3.40919471]
[1642689522218,0.00113685,3205.3,3205.0,2.65481339]
[1642689522418,0.00113685,3205.3,3205.1,3.24737786]
[1642689522618,0.00113685,3205.3,3205.2,8.25481339]
[1642689522820,3.685e-05,3205.3,3205.2,8.25481339]
[1642689523017,3.685e-05,3205.3,3205.2,9.25481339]
[1642689523218,0.02919164,3207.0,3205.3,5.6]
[1642689523418,0.02919164,3207.0,3205.4,4.6427977]
[1642689523618,0.00909478,3206.9,3205.5,7.28254954]
[1642689523825,0.00909478,3206.9,3205.6,4.74760839]
[1642689524019,2.19006885,3207.1,3205.6,0.00473615]
[1642689524020,0.00852635,3206.8,3205.6,0.00473615]
[1642689524218,0.00852635,3206.8,3205.5,4.623]
[1642689524219,0.00852635,3206.8,3206.3,1.29214781]
[1642689524419,0.00795793,3206.7,3206.2,0.00473615]
[1642689524621,0.00795793,3206.7,3205.6,0.00473615]
[1642689524820,3.1205367,3207.4,3205.6,0.00473615]
[1642689524821,2.7344283,3208.5,3205.7,5.6]
[1642689525021,3.6224,3208.7,3207.3,0.0122728]
[1642689525280,1.08881631,3209.0,3208.6,0.01202494]
[1642689525482,2.33902,3209.4,3207.4,0.15593258]
[1642689525684,2.33902,3209.4,3207.4,0.14293612]
[1642689525685,0.7798039,3208.7,3207.4,0.14293612]
[1642689525879,0.13147374,3208.9,3207.4,0.14293612]
[1642689525880,3.7312,3208.6,3207.4,0.14293612]
[1642689526080,3.74256846,3208.6,3207.4,0.14293612]
[1642689526280,3.74256846,3208.6,3207.4,0.13819997]
[1642689526281,0.01080004,3208.5,3207.4,0.13819997]
[1642689526681,0.01023162,3208.4,3207.4,0.13819997]
[1642689526881,1.46573552,3207.6,3207.4,0.13819997]
[1642689527081,1.46573552,3207.6,3207.4,0.14293612]
[1642689527280,0.00511581,3207.5,3207.4,0.13819997]
[1642689527482,0.00511581,3207.5,3207.4,0.14293612]
[1642689527781,0.00511581,3207.5,3207.4,7.78428401]
[1642689527982,0.00511581,3207.5,3207.4,7.94012401]
[1642689528181,0.00511581,3207.5,3207.4,10.03787957]
[1642689528381,0.00511581,3207.5,3207.4,7.48733469]
[1642689528581,0.00511581,3207.5,3207.4,4.43819997]
[1642689529231,0.00511581,3207.5,3207.4,7.46680266]
[1642689529430,0.00511581,3207.5,3207.4,4.43819997]
[1642689529630,0.00511581,3207.5,3207.4,5.73819997]
[1642689530331,0.00511581,3207.5,3207.4,6.83869215]
[1642689532438,0.00511581,3207.5,3207.4,5.53869215]
[1642689533470,0.00511581,3207.5,3207.3,1.10638115]
[1642689533671,0.00511581,3207.5,3207.3,1.09391279]
[1642689533868,0.00454738,3207.4,3207.3,1.09391279]
[1642689534667,0.00454738,3207.4,3207.3,2.27488526]
[1642689535268,0.00454738,3207.4,3207.2,0.00473615]
[1642689535471,0.05935307,3207.3,3207.1,1.1351]
[1642689535670,0.00397896,3207.3,3207.1,1.1351]
[1642689535869,0.00341054,3207.2,3207.1,1.1351]
[1642689536069,0.00341054,3207.2,3207.1,1.13983615]
[1642689536413,0.00341054,3207.2,3207.1,1.1351]
[1642689536618,0.00341054,3207.2,3207.1,4.4883657]
[1642689536919,0.00341054,3207.2,3207.1,1.1351]
[1642689537116,0.00341054,3207.2,3207.1,4.4883657]
[1642689537316,0.00341054,3207.2,3207.1,1.1351]
[1642689537516,0.00341054,3207.2,3207.1,6.7351]
[1642689537718,0.00341054,3207.2,3207.1,10.0883657]
[1642689537918,0.00341054,3207.2,3207.1,11.2442057]
[1642689538118,0.00341054,3207.2,3207.1,10.2442057]
[1642689538317,0.00341054,3207.2,3207.1,11.2442057]
[1642689538517,0.00341054,3207.2,3207.1,10.0883657]
[1642689538919,0.00341054,3207.2,3207.1,6.7351]
[1642689539621,0.00341054,3207.2,3207.1,9.79813909]
[1642689539820,0.00341054,3207.2,3207.1,6.7351]
[1642689540186,0.00341054,3207.2,3207.1,9.78581541]
[1642689540979,0.00341054,3207.2,3207.1,6.7351]
[1642689542080,0.00341054,3207.2,3207.1,9.85033181]
[1642689542883,0.00341054,3207.2,3207.1,6.89094]
[1642689543084,0.00341054,3207.2,3207.1,11.2442057]
[1642689543285,1.054e-05,3207.2,3207.1,11.2442057]
[1642689543584,3.6864,3209.2,3207.2,5.63362541]
[1642689543784,0.1,3209.9,3207.9,0.01253891]
[1642689544020,0.124821,3208.8,3208.0,0.15584]
[1642689544222,0.124821,3208.8,3208.1,1.2471]
[1642689544422,0.124821,3208.8,3208.2,1.49199998]
[1642689544423,0.00852635,3208.7,3208.2,1.49199998]
[1642689544826,0.00795792,3208.6,3208.3,4.5964]
[1642689545221,0.1,3209.9,3208.5,5.6]
[1642689545522,0.1,3209.9,3208.7,0.01858479]
[1642689545721,0.1,3209.9,3208.7,1.04428479]
[1642689546322,0.1,3209.9,3209.7,1.1000545]
[1642689547527,0.1,3209.9,3208.9,1.1723]
[1642689547528,0.02231084,3209.8,3208.9,1.1723]
[1642689547783,0.13911084,3209.8,3208.9,1.1723]
[1642689547971,0.02228158,3209.6,3208.9,1.1723]
[1642689548372,0.00568424,3209.5,3208.9,1.1723]
[1642689548771,0.00511581,3209.4,3208.9,1.1723]
[1642689548972,0.00511581,3209.4,3208.8,1.42680693]
[1642689549172,0.00454739,3209.3,3208.8,1.42680693]
[1642689549575,0.00397897,3209.2,3208.8,1.42680693]
[1642689549977,0.00341054,3209.1,3208.8,1.42680693]
[1642689550274,1.4168069,3209.6,3207.8,3.43905374]
[1642689550275,0.00284212,3209.0,3207.8,3.43905374]
[1642689550474,0.0310931,3209.0,3207.8,7.39425374]
[1642689550677,0.0022737,3208.9,3207.8,4.09339997]
[1642689550876,0.02982835,3208.8,3208.3,4.5464]
[1642689551075,0.00170527,3208.8,3208.3,4.5464]
[1642689551275,0.1546,3209.5,3208.3,5.7769743]
[1642689551276,0.00113685,3208.7,3208.3,5.7769743]
[1642689551522,0.00113685,3208.7,3208.4,1.22576426]
[1642689551726,0.12483,3208.9,3208.4,1.22576426]
[1642689551930,0.00511581,3209.4,3208.4,3.3532657]
[1642689552124,0.00170527,3208.8,3208.5,3.3532657]
[1642689552331,0.00454739,3209.3,3208.5,4.5870657]
[1642689552529,0.00113685,3208.7,3208.5,4.5870657]
[1642689552823,0.1,3209.9,3208.5,4.5870657]
[1642689552824,0.00738951,3209.8,3208.5,4.5870657]
[1642689553025,0.00738951,3209.8,3209.7,1.47232462]
[1642689554025,0.00738951,3209.8,3209.7,2.59342462]
[1642689554424,0.00738951,3209.8,3209.7,6.34342462]
[1642689556362,0.00738951,3209.8,3209.7,9.64958151]
[1642689559236,0.00738951,3209.8,3209.7,5.89958151]
[1642689559638,0.00651043,3209.8,3209.7,2.59342462]
[1642689559839,0.00651043,3209.8,3209.3,1.1638]
[1642689560038,0.04134129,3209.7,3209.3,1.1638]
[1642689560239,0.04728329,3209.7,3209.3,1.1638]
[1642689560441,0.00537358,3209.6,3209.3,1.1638]
[1642689560638,0.00537358,3209.6,3209.0,4.7182]
[1642689560840,0.00480516,3209.5,3209.0,4.7182]
[1642689561338,0.00423673,3209.4,3209.0,4.7182]
[1642689561740,0.029,3209.7,3209.0,4.7182]
[1642689561741,0.00366831,3209.3,3209.0,4.7182]
[1642689562141,0.00309989,3209.2,3209.0,4.7182]
[1642689562442,0.00253146,3209.1,3209.0,4.7182]
[1642689563666,0.00253146,3209.1,3207.1,1.55907]
[1642689563864,0.00253146,3209.1,3207.6,8.2756]
[1642689563865,0.0936416,3209.0,3207.6,8.2756]
[1642689564163,0.03039462,3208.9,3207.9,0.00428962]
[1642689564364,0.029,3208.8,3207.9,0.00428962]
[1642689564566,0.029,3208.8,3207.8,0.00485804]
[1642689564567,1.49351329,3208.5,3207.8,0.00485804]
[1642689564763,1.52251329,3208.5,3207.8,0.00485804]
[1642689565863,0.029,3208.5,3207.8,0.00485804]
[1642689566264,0.029,3208.5,3207.7,0.00542647]
[1642689567122,0.029,3208.5,3208.1,1.41541194]
[1642689567623,0.029,3208.5,3208.2,0.00258435]
[1642689567824,0.029,3208.5,3207.6,7.26503217]
[1642689568026,0.029,3208.5,3207.6,4.2858]
[1642689568229,0.00113685,3208.4,3207.6,4.23864212]
[1642689568427,0.00397897,3208.4,3207.6,4.23864212]
[1642689568627,1.11436212,3208.6,3207.6,4.23864212]
[1642689568628,0.00341054,3208.3,3207.6,4.23864212]
[1642689568828,0.00341054,3208.3,3207.8,1.47150918]
[1642689569025,2.35496972,3208.6,3207.8,1.47150918]
[1642689569026,0.00284212,3208.2,3207.8,1.47150918]
[1642689569226,0.00284212,3208.2,3207.6,4.23864212]
[1642689569427,0.0022737,3208.1,3207.6,4.23864212]
[1642689569829,0.00170527,3208.0,3207.6,4.23864212]
[1642689570267,0.00113685,3207.9,3207.6,4.23864212]
[1642689570667,0.00454739,3208.5,3207.6,4.23864212]
[1642689571065,0.0054503,3208.2,3207.6,4.23864212]
[1642689571266,0.124844,3208.3,3207.6,4.23864212]
[1642689571468,0.0022737,3208.1,3207.6,4.23864212]
[1642689571669,0.00284212,3208.2,3207.6,4.23864212]
[1642689571871,0.00170527,3208.0,3207.6,4.23864212]
[1642689572072,0.00170527,3208.0,3207.4,1.2069]
[1642689572073,1.21346569,3207.8,3207.4,1.2069]
[1642689572271,1.21346569,3207.8,3207.1,3.8959]
[1642689572272,0.03478274,3207.7,3207.2,0.0008]
[1642689572472,0.00537985,3207.7,3207.5,0.00113684]
[1642689572674,1.51346569,3207.8,3207.5,0.00113684]
[1642689573920,0.7800117,3207.6,3207.5,0.00113684]
[1642689574822,7.2588117,3207.6,3207.5,0.00113684]
[1642689575020,11.00461256,3207.6,3207.5,0.00113684]
[1642689575327,7.9836117,3207.6,3207.5,0.00113684]
[1642689575521,8.13221167,3207.6,3207.5,0.00113684]
[1642689575726,8.13221167,3207.6,3207.2,0.0008]
[1642689575727,0.79086124,3207.4,3207.2,0.0008]
[1642689575928,0.79086124,3207.4,3207.3,0.00113685]
[1642689575929,1.0802369,3207.4,3207.3,0.00113685]
[1642689576127,6.7092369,3207.4,3207.3,0.00113685]
[1642689576325,5.6,3207.3,3207.2,0.0008]
[1642689576625,10.945131,3207.3,3207.2,0.0008]
[1642689576824,11.376122,3207.3,3207.2,0.0008]
[1642689577024,12.71836649,3207.3,3207.2,0.0008]
[1642689577228,5.655322,3207.3,3207.2,0.0008]
[1642689577427,0.029,3207.3,3207.2,0.0008]
[1642689577675,3.98799997,3207.6,3207.2,0.0008]
[1642689578069,0.029,3208.0,3207.5,1.53803132]
[1642689578269,1.11827847,3207.9,3207.2,0.0008]
[1642689578469,0.00341054,3207.9,3207.2,0.0008]
[1642689579270,0.00341054,3207.9,3207.3,1.10973794]
[1642689579471,0.00341054,3207.9,3207.5,0.01666464]
[1642689579875,0.00341054,3207.9,3207.5,3.7517994]
[1642689580077,0.00341054,3207.9,3207.5,4.7517994]
[1642689580275,0.00341054,3207.9,3207.6,0.16261718]
[1642689580477,0.00341054,3207.9,3207.7,2.72903]
[1642689580677,0.00341054,3207.9,3207.8,14.93141624]
[1642689580876,1.054e-05,3207.9,3207.8,13.7746733]
[1642689581075,0.1,3209.9,3207.9,5.61837482]
[1642689581422,0.1,3209.9,3208.1,0.77939]
[1642689581423,0.01023162,3209.7,3208.1,0.77939]
[1642689581623,0.01023162,3209.7,3208.6,0.79224741]
[1642689581822,0.1,3209.9,3208.8,1.2057983]
[1642689581823,0.0096632,3209.6,3208.8,1.2057983]
[1642689582022,0.0096632,3209.6,3209.5,4.62229558]
[1642689582221,0.1,3209.9,3209.5,4.62229558]
[1642689582423,0.1,3209.9,3209.5,3.5]
[1642689582623,0.01023162,3209.7,3209.0,4.3146]
[1642689583026,0.0096632,3209.6,3209.0,4.3146]
[1642689583225,0.0346632,3209.6,3209.0,4.3146]
[1642689583425,0.00909478,3209.5,3209.0,4.3146]
[1642689583625,0.00909478,3209.5,3208.6,1.2365]
[1642689583626,1.14128157,3209.3,3208.6,2.64662374]
[1642689584027,0.00738951,3209.2,3208.6,2.64662374]
[1642689584224,0.00738951,3209.2,3207.9,8.7923]
[1642689584428,0.01434202,3209.1,3207.9,8.7923]
[1642689584625,0.025,3209.0,3207.9,8.7923]
[1642689584826,1.50488419,3208.6,3207.9,8.7923]
[1642689585200,0.01052469,3208.4,3207.9,5.7917]
[1642689585391,0.00341054,3208.5,3207.9,5.7917]
[1642689585592,0.00227369,3208.3,3207.9,5.7917]
[1642689585792,3.71729139,3208.5,3207.3,1.1852]
[1642689585793,0.025,3208.2,3207.3,1.1852]
[1642689585995,1.33943072,3208.0,3207.3,1.1852]
[1642689586193,1.34844806,3208.0,3207.4,0.00284212]
[1642689586394,0.025,3208.0,3207.4,0.00284212]
[1642689587398,0.0096195,3207.9,3207.4,0.00284212]
[1642689587597,0.025,3208.0,3207.2,0.0008]
[1642689587598,0.025,3207.8,3207.3,0.00341054]
[1642689587798,0.025,3207.7,3207.3,0.00341054]
[1642689587998,0.025,3207.6,3207.3,0.00341054]
[1642689588600,0.02230959,3207.5,3207.3,0.00341054]
[1642689588799,4.40962053,3207.6,3207.3,0.00341054]
[1642689589239,0.8051015,3207.6,3207.3,0.00341054]
[1642689589641,0.025,3207.6,3207.3,0.00341054]
[1642689590048,0.81456869,3207.8,3207.3,0.00341054]
[1642689590946,0.81456869,3207.8,3207.6,1.48136439]
[1642689591447,0.81456869,3207.8,3207.7,0.00113685]
[1642689591649,0.00113685,3208.1,3207.7,0.00113685]
[1642689593180,0.01847276,3208.0,3207.7,0.00113685]
[1642689593381,0.00113685,3208.1,3207.7,0.00113685]
[1642689594389,0.00113685,3208.1,3207.8,0.07552398]
[1642689594582,0.00113685,3208.1,3207.7,0.00113685]
[1642689595983,0.00113685,3208.1,3207.7,0.78070685]
[1642689597826,0.00113685,3208.1,3208.0,5.28311921]
[1642689598727,0.00113685,3208.1,3207.7,1.23113685]
[1642689599731,0.01086911,3208.0,3207.7,1.23113685]
[1642689599929,0.00113685,3208.1,3207.7,1.23113685]
[1642689600173,0.00113685,3208.1,3208.0,205.0]
[1642689603079,0.00113685,3208.1,3208.0,204.99911266]
[1642689606327,0.00113685,3208.1,3208.0,204.98972526]
[1642689609180,0.00113685,3208.1,3208.0,204.98721033]
[1642689611433,5.22513685,3208.1,3208.0,197.74531033]
[1642689611628,0.02513685,3208.1,3208.0,197.74531033]
[1642689612534,5.87513685,3208.1,3208.0,175.05585033]
[1642689612830,6.17513685,3208.1,3208.0,168.81512033]
[1642689613029,6.30153685,3208.1,3208.0,168.81512033]
[1642689613230,6.30393685,3208.1,3208.0,168.81512033]
[1642689613430,7.08232685,3208.1,3208.0,168.81512033]
[1642689613830,1.53232685,3208.1,3208.0,168.81512033]
[1642689614032,0.32513685,3208.1,3208.0,168.81512033]
[1642689615180,5.67513685,3208.1,3208.0,119.05550826]
[1642689615377,63.53203185,3208.1,3208.0,94.76065826]
[1642689615578,56.80111185,3208.1,3208.0,94.76065826]
[1642689615776,32.16066485,3208.1,3208.0,82.27881826]
[1642689615982,44.51083685,3208.1,3208.0,76.03744346]
[1642689616181,37.01346593,3208.1,3208.0,76.03744346]
[1642689616382,18.366593,3208.1,3208.0,76.03744346]
[1642689616581,17.500593,3208.1,3208.0,76.03744346]
[1642689616782,18.983793,3208.1,3208.0,76.03744346]
[1642689616983,12.692383,3208.1,3208.0,76.03744346]
[1642689617186,33.855596,3208.1,3208.0,38.58306422]
[1642689617483,85.55815872,3208.1,3208.0,11.30822268]
[1642689617687,85.55815872,3208.1,3206.5,3.48907684]
[1642689617688,5.9,3208.0,3206.5,3.48907684]
[1642689617984,1.10426,3207.7,3207.3,0.00227369]
[1642689618183,0.024,3207.6,3207.3,0.00227369]
[1642689618383,21.827814,3207.6,3207.3,0.00227369]
[1642689618585,1.13789672,3207.5,3207.3,0.00227369]
[1642689618785,2.374,3207.4,3207.3,0.00227369]
[1642689619051,0.1424,3207.4,3207.3,0.00227369]
[1642689619238,12.295084,3207.4,3207.3,0.00227369]
[1642689619439,0.024,3207.4,3207.3,0.00227369]
[1642689619841,0.024,3207.4,3207.3,1.10591294]
[1642689620040,0.324,3207.4,3207.3,0.00227369]
[1642689621546,0.324,3207.4,3206.4,9.9781]
[1642689621547,5.9,3207.3,3206.4,9.9781]
[1642689621747,5.9,3207.3,3206.4,5.7018]
[1642689621748,5.924,3207.3,3206.4,5.7018]
[1642689621946,5.924,3207.3,3205.8,0.00473615]
[1642689621947,0.3,3207.2,3205.8,0.00473615]
[1642689622147,0.01290753,3207.0,3205.8,6.17753615]
[1642689622349,1.22612803,3206.7,3205.9,1.11251983]
[1642689622548,0.024,3206.6,3206.0,0.00473615]
[1642689622783,0.024,3206.6,3206.0,3.37607516]
[1642689622784,0.324,3206.6,3206.0,3.37607516]
[1642689622976,0.324,3206.6,3206.1,0.00682108]
[1642689623377,0.324,3206.6,3206.5,1.18373293]
[1642689623775,0.324,3206.6,3206.5,1.18828032]
[1642689624782,0.324,3206.6,3206.5,0.00454739]
[1642689624985,0.324,3206.6,3206.3,0.00473615]
[1642689625183,0.01792407,3206.5,3205.7,4.6428]
[1642689625387,0.024,3206.5,3205.7,4.6428]
[1642689625583,0.024,3206.5,3205.9,0.00341054]
[1642689625883,0.024,3206.5,3206.2,1.15612359]
[1642689626084,0.024,3206.5,3205.9,0.00341054]
[1642689626284,0.024,3206.5,3206.3,0.00113684]
[1642689626285,0.148,3206.5,3206.3,0.00113684]
[1642689626541,0.148,3206.5,3205.3,3.75577892]
[1642689626542,5.9,3206.4,3205.3,3.75577892]
[1642689626740,5.9,3206.4,3205.9,0.0022737]
[1642689626741,0.10748044,3206.3,3205.9,0.0022737]
[1642689626940,1.1696,3206.3,3205.9,0.0022737]
[1642689627140,1.1688,3206.3,3205.9,0.0022737]
[1642689627343,0.1368,3206.2,3205.9,0.0022737]
[1642689627542,0.024,3206.1,3205.9,0.0022737]
[1642689627945,1.10459,3206.1,3205.9,0.0022737]
[1642689628145,1.53179,3206.1,3205.9,0.0022737]
[1642689628444,1.52539,3206.1,3205.9,0.0022737]
[1642689629047,1.52459,3206.1,3205.9,0.0022737]
[1642689629243,2.7176,3206.0,3205.9,0.0022737]
[1642689629443,0.1408,3206.0,3205.5,0.00454739]
[1642689629743,0.024,3206.0,3205.5,0.00454739]
[1642689629947,0.1448,3206.0,3205.5,0.00454739]
[1642689630180,0.1424,3206.0,3205.5,0.00454739]
[1642689630375,0.1472,3206.0,3205.5,0.00454739]
[1642689630578,0.148,3206.0,3205.5,0.00454739]
[1642689630775,0.1496,3206.0,3205.5,0.00454739]
[1642689630975,0.1464,3206.0,3205.5,0.00454739]
[1642689631176,0.024,3206.0,3205.5,0.00454739]
[1642689632880,0.1408,3206.0,3205.5,0.00454739]
[1642689633083,0.1432,3206.0,3205.5,0.00454739]
[1642689633679,0.024,3206.0,3205.6,0.02106184]
[1642689634129,0.024,3206.0,3205.8,0.01853153]
[1642689634329,0.024,3206.0,3205.7,0.00341055]
[1642689634729,0.024,3206.0,3205.5,0.00454739]
[1642689635031,0.01982031,3205.9,3205.5,0.00454739]
[1642689635229,0.024,3205.8,3205.5,0.00454739]
[1642689635530,0.128,3206.4,3205.5,3.25923439]
[1642689635734,1.01219652,3207.4,3205.6,0.00563372]
[1642689635735,0.024,3207.1,3205.6,0.00563372]
[1642689635930,0.00113684,3206.5,3205.6,1.25081269]
[1642689636128,0.00397896,3207.0,3205.7,5.00651581]
[1642689636329,0.00397896,3207.0,3205.7,0.00341055]
[1642689636530,0.03604325,3207.1,3206.3,1.4157637]
[1642689636531,0.00341054,3206.9,3206.3,1.4157637]
[1642689636731,0.00341054,3206.9,3206.4,6.0916]
[1642689636931,0.00284211,3206.8,3206.4,6.0916]
[1642689637332,0.02627369,3206.7,3206.4,6.0916]
[1642689637534,0.02627369,3206.7,3206.4,7.62093718]
[1642689637801,0.00170527,3206.6,3206.4,6.0916]
[1642689638190,0.024,3206.7,3206.4,6.0916]
[1642689638191,0.00113684,3206.5,3206.4,6.0916]
[1642689638790,0.00113684,3206.5,3206.4,7.21050584]
[1642689639592,0.00113684,3206.5,3206.4,8.75158297]
[1642689639791,0.00113684,3206.5,3206.4,12.30482068]
[1642689639991,0.00113684,3206.5,3206.4,8.75158297]
[1642689640594,0.00113684,3206.5,3206.4,17.18521568]
[1642689641928,0.1184,3207.5,3206.5,5.96742483]
[1642689642127,0.024,3207.8,3206.6,4.88217892]
[1642689642327,0.00454739,3207.3,3206.6,4.88217892]
[1642689642730,0.00397897,3207.2,3206.6,4.88217892]
[1642689642929,0.00397897,3207.2,3207.1,7.06384533]
[1642689643131,0.70782364,3207.7,3207.1,8.62594897]
[1642689643534,0.00625266,3207.6,3207.1,8.62594897]
[1642689643931,0.03,3208.0,3207.2,0.02625351]
[1642689643932,0.00568424,3207.5,3207.2,0.02625351]
[1642689644130,0.00568424,3207.5,3207.2,3.82302451]
[1642689644329,0.00511581,3207.4,3207.2,3.796771]
[1642689644534,0.00511581,3207.4,3207.3,9.589]
[1642689644832,0.024,3208.2,3207.6,1.12027984]
[1642689645274,0.00909478,3208.1,3207.6,1.12027984]
[1642689645773,0.00852635,3208.0,3207.7,1.16246961]
[1642689646279,0.024,3208.2,3207.8,3.26324575]
[1642689646280,0.00795793,3207.9,3207.8,3.26324575]
[1642689646481,0.00795793,3207.9,3207.8,7.12277694]
[1642689646679,0.00795793,3207.9,3207.8,7.10172594]
[1642689646879,0.00795793,3207.9,3207.8,3.728949]
[1642689648281,0.00795793,3207.9,3207.8,5.878949]
[1642689648483,0.00795793,3207.9,3207.8,9.63472792]
[1642689648682,0.00795793,3207.9,3207.8,5.878949]
[1642689649135,0.00795793,3207.9,3207.8,7.1940311]
[1642689649335,0.00795793,3207.9,3207.8,3.728949]
[1642689651344,0.00795793,3207.9,3207.8,6.97875799]
[1642689651741,0.00795793,3207.9,3207.8,3.728949]
[1642689652342,0.00795793,3207.9,3207.7,5.74936961]
[1642689652543,0.00795793,3207.9,3207.7,4.5869]
[1642689652544,0.024,3207.8,3207.7,4.5869]
[1642689652780,0.03138951,3207.8,3207.4,5.2962]
[1642689652979,0.0450289,3207.7,3207.3,5.789]
[1642689653181,0.024,3207.6,3207.3,5.789]
[1642689653380,0.03025266,3207.6,3207.3,5.789]
[1642689653581,0.00568424,3207.5,3207.4,3.76761804]
[1642689653781,0.02968424,3207.5,3207.4,8.70271804]
[1642689654183,0.00568424,3207.5,3207.4,12.45849696]
[1642689654384,0.00568424,3207.5,3207.4,8.70271804]
[1642689654881,0.00568424,3207.5,3207.4,22.37179696]
[1642689655682,0.00568424,3207.5,3207.4,18.61601804]
[1642689660030,0.0048598,3207.5,3207.4,18.61601804]
[1642689660780,0.035,3208.4,3207.6,0.85074068]
[1642689660981,0.035,3208.4,3207.8,0.07460835]
[1642689661183,0.124862,3208.9,3208.0,0.05125628]
[1642689661380,0.124862,3208.9,3208.1,2.50440853]
[1642689661584,0.0073895,3208.8,3208.2,5.18814056]
[1642689661785,0.0073895,3208.8,3208.3,5.8894]
[1642689661982,0.00682108,3208.7,3208.4,3.30646794]
[1642689662382,0.00625265,3208.6,3208.4,3.30812567]
[1642689662784,0.00568423,3208.5,3208.3,5.8894]
[1642689663183,0.124862,3208.9,3208.3,5.8894]
[1642689663184,0.00511581,3208.4,3208.3,5.8894]
[1642689663929,0.124862,3208.9,3208.7,1.36222384]
[1642689664125,0.124862,3208.9,3208.8,1.5591416]
[1642689665928,0.1,3209.3,3208.9,0.01238313]
[1642689666328,0.1,3209.3,3208.9,0.79185973]
[1642689666329,0.00454739,3209.2,3208.9,0.79185973]
[1642689666534,0.00454739,3209.2,3209.0,3.56019082]
[1642689666729,0.1,3209.3,3209.0,3.56019082]
[1642689666730,0.00397896,3209.1,3209.0,3.56019082]
[1642689667132,0.00397896,3209.1,3209.0,8.21019082]
[1642689667983,0.00397896,3209.1,3209.0,9.76898872]
[1642689668583,0.00397896,3209.1,3209.0,6.2087979]
[1642689669385,0.00397896,3209.1,3208.9,0.7794766]
[1642689669690,0.1,3209.3,3208.8,2.8015416]
[1642689669691,0.0660069,3209.0,3208.8,2.8015416]
[1642689669886,0.00341054,3209.0,3208.8,2.8015416]
[1642689670087,0.00284212,3208.9,3208.8,2.8015416]
[1642689671089,0.00284212,3208.9,3208.8,5.0015416]
[1642689671928,0.00284212,3208.9,3208.8,8.34230465]
[1642689672129,0.00284212,3208.9,3208.8,5.0015416]
[1642689673332,0.00284212,3208.9,3208.8,8.22269006]
[1642689673529,0.00284212,3208.9,3208.8,8.23605583]
[1642689673828,0.00284212,3208.9,3208.8,2.8015416]
[1642689674229,0.02684212,3208.9,3208.8,1.2424]
[1642689674429,0.02684212,3208.9,3208.6,4.837]
[1642689674629,0.04988874,3208.8,3208.6,4.837]
[1642689674829,0.024,3208.7,3208.6,4.837]
[1642689675032,0.02570527,3208.7,3208.6,4.837]
[1642689675576,0.08768753,3208.6,3208.3,5.8894]
[1642689675776,0.024,3208.5,3208.3,5.8894]
[1642689676479,0.81543805,3208.6,3208.3,5.8894]
[1642689676480,0.00113684,3208.6,3208.4,8.69372802]
[1642689676680,0.1168,3209.5,3208.6,5.9]
[1642689676681,0.00356667,3209.2,3208.6,5.9]
[1642689676881,0.10356667,3209.3,3208.7,3.75577892]
[1642689677079,0.0022737,3209.0,3208.7,3.75577892]
[1642689677280,0.124,3209.9,3208.9,1.37509415]
[1642689677482,0.1,3209.9,3209.3,0.0214462]
[1642689677684,0.1,3209.9,3209.4,1.46588698]
[1642689677885,0.1,3209.9,3209.5,3.75577892]
[1642689678181,0.1,3209.9,3209.6,0.01291066]
[1642689678382,0.1,3209.9,3209.7,0.01389661]
[1642689678583,0.1,3209.9,3209.6,0.01291066]
[1642689678584,0.024,3210.7,3209.8,4.9]
[1642689678784,0.024,3210.7,3209.6,5.28776626]
[1642689678785,7.32,3210.5,3209.6,5.28776626]
[1642689679052,0.2495755,3210.0,3209.5,8.1612682]